[Event "SPICE Cup 2014"]
[Site "St. Louis"]
[Date "2014.10.23"]
[Round "3"]
[White "Corrales Jimenez, Fidel"]
[Black "Kjartansson, Gudmundur"]
[Result "1/2-1/2"]
[ECO "D30"]
[WhiteElo "2532"]
[BlackElo "2439"]
[PlyCount "54"]
[EventDate "2014.??.??"]
[EventCountry "USA"]
[TimeControl "5400+30"]
[WhiteClock "1:20:22"]
[BlackClock "0:29:32"]

1. d4 {[%emt 0:00:21]} d5 {[%emt 0:00:06]} 2. c4 {[%emt 0:00:05]} e6 {[%emt 0:
00:10]} 3. cxd5 {[%emt 0:00:43]} exd5 {[%emt 0:00:06]} 4. Nc3 {[%emt 0:00:03]}
c6 {[%emt 0:00:25]} 5. Nf3 {[%emt 0:00:11]} Nf6 {[%emt 0:00:12]} 6. Bg5 {[%emt
0:00:04]} Be7 {[%emt 0:00:29]} 7. e3 {[%emt 0:00:33]} Bf5 {[%emt 0:00:49]} 8.
Bxf6 {[%emt 0:00:35]} Bxf6 {[%emt 0:00:12]} 9. Bd3 {[%emt 0:00:03]} Bxd3 {
[%emt 0:01:08]} 10. Qxd3 {[%emt 0:00:05]} Nd7 {[%emt 0:12:23]} 11. O-O {[%emt
0:00:18]} Be7 {[%emt 0:03:59]} 12. Qc2 {[%emt 0:01:11]} O-O {[%emt 0:01:32]}
13. Rab1 {[%emt 0:00:08]} a5 {[%emt 0:04:58]} 14. a3 {[%emt 0:00:25]} b5 {
[%emt 0:02:40]} 15. a4 {[%emt 0:03:53]} b4 {[%emt 0:01:40]} 16. Ne2 {[%emt 0:
00:04]} Rc8 {[%emt 0:03:02]} 17. Rfd1 {[%emt 0:00:40]} Bd6 {[%emt 0:01:31]} 18.
b3 {[%emt 0:01:47]} Re8 {[%emt 0:02:54]} 19. Rbc1 {[%emt 0:01:22]} Re6 {[%emt
0:09:45]} 20. Qd3 {[%emt 0:01:21]} Nb8 {[%emt 0:12:43]} 21. Ng3 {[%emt 0:01:30]
} Bxg3 {[%emt 0:02:18]} 22. hxg3 {[%emt 0:00:05]} Nd7 {[%emt 0:01:25]} 23. Qf5
{[%emt 0:02:26]} g6 {[%emt 0:01:44]} 24. Qf4 {[%emt 0:00:35]} Kg7 {[%emt 0:01:
41]} 25. Rc2 {[%emt 0:00:19]} Re4 {[%emt 0:05:20]} 26. Qd6 {[%emt 0:03:21]} Re6
{[%emt 0:00:40]} 27. Qf4 {[%emt 0:01:00]} Re4 {[%emt 0:00:06]} 1/2-1/2

[Event "SPICE Cup 2014"]
[Site "St. Louis"]
[Date "2014.10.23"]
[Round "3"]
[White "Durabalyi, Vasif"]
[Black "Reinaldo, Vera"]
[Result "1-0"]
[ECO "B82"]
[WhiteElo "2624"]
[BlackElo "2449"]
[PlyCount "93"]
[EventDate "2014.??.??"]
[EventCountry "USA"]
[TimeControl "5400+30"]
[WhiteClock "0:59:37"]
[BlackClock "0:01:43"]

1. e4 {[%emt 0:00:32]} c5 {[%emt 0:00:00]} 2. Nf3 {[%emt 0:00:07]} d6 {[%emt 0:
00:07]} 3. d4 {[%emt 0:00:08]} cxd4 {[%emt 0:00:02]} 4. Nxd4 {[%emt 0:00:05]}
Nf6 {[%emt 0:00:07]} 5. Nc3 {[%emt 0:00:05]} e6 {[%emt 0:00:04]} 6. f4 {[%emt
0:01:31]} a6 {[%emt 0:02:27]} 7. Qf3 {[%emt 0:02:43]} Qb6 {[%emt 0:00:09]} 8.
Nb3 {[%emt 0:00:43]} Qc7 {[%emt 0:00:55]} 9. Bd3 {[%emt 0:05:47]} b5 {[%emt 0:
01:07]} 10. Be3 {[%emt 0:01:03]} Bb7 {[%emt 0:02:50]} 11. g4 {[%emt 0:01:13]}
b4 {[%emt 0:27:21]} 12. Ne2 {[%emt 0:00:23]} d5 {[%emt 0:04:52]} 13. Ng3 {
[%emt 0:00:21]} Nbd7 {[%emt 0:00:46]} 14. g5 {[%emt 0:03:10]} dxe4 {[%emt 0:00:
08]} 15. Nxe4 {[%emt 0:00:08]} Nd5 {[%emt 0:00:07]} 16. Bd2 {[%emt 0:02:02]} g6
{[%emt 0:06:34]} 17. O-O-O {[%emt 0:06:01]} Bg7 {[%emt 0:00:02]} 18. h4 {[%emt
0:03:16]} a5 {[%emt 0:00:54]} 19. Bb5 {[%emt 0:00:09]} Bc6 {[%emt 0:00:50]} 20.
Bxc6 {[%emt 0:03:24]} Qxc6 {[%emt 0:00:07]} 21. f5 {[%emt 0:03:15]} Rc8 {[%emt
0:11:44]} 22. c3 {[%emt 0:02:36]} gxf5 {[%emt 0:00:18]} 23. Nf6+ {[%emt 0:01:
37]} Bxf6 {[%emt 0:21:47]} 24. gxf6 {[%emt 0:01:30]} bxc3 {[%emt 0:00:02]} 25.
bxc3 {[%emt 0:00:23]} Nxc3 {[%emt 0:04:35]} 26. Qxc6 {[%emt 0:00:20]} Rxc6 {
[%emt 0:01:38]} 27. Nxa5 {[%emt 0:00:13]} Rc8 {[%emt 0:01:08]} 28. Bxc3 {[%emt
0:00:24]} Rxc3+ {[%emt 0:00:02]} 29. Kb2 {[%emt 0:00:01]} Rc8 {[%emt 0:02:26]}
30. a4 {[%emt 0:01:50]} Nxf6 {[%emt 0:00:18]} 31. Nb3 {[%emt 0:00:19]} Rg8 {
[%emt 0:02:02]} 32. a5 {[%emt 0:00:01]} Rg3 {[%emt 0:02:09]} 33. Rc1 {[%emt 0:
01:26]} Rb8 {[%emt 0:00:42]} 34. Rc3 {[%emt 0:00:01]} Rxc3 {[%emt 0:00:48]} 35.
Kxc3 {[%emt 0:00:01]} Nd5+ {[%emt 0:02:02]} 36. Kb2 {[%emt 0:00:01]} f4 {[%emt
0:00:50]} 37. a6 {[%emt 0:00:20]} f3 {[%emt 0:03:22]} 38. Rf1 {[%emt 0:00:09]}
Ra8 {[%emt 0:00:29]} 39. Nc5 {[%emt 0:00:19]} Nb4 {[%emt 0:00:01]} 40. Rxf3 {
[%emt 0:00:39]} Nxa6 {[%emt 0:00:02]} 41. Ne4 {[%emt 0:00:01]} Ke7 {[%emt 0:02:
03]} 42. Nf6 {[%emt 0:01:09]} Nc5 {[%emt 0:01:41]} 43. Nxh7 {[%emt 0:01:05]}
Rh8 {[%emt 0:00:37]} 44. Ng5 {[%emt 0:00:28]} f6 {[%emt 0:00:02]} 45. Nh3 {
[%emt 0:00:21]} e5 {[%emt 0:00:55]} 46. Kc2 {[%emt 0:01:23]} Rxh4 {[%emt 0:00:
05]} 47. Kd1 {[%emt 0:01:10]} 1-0

[Event "SPICE Cup 2014"]
[Site "St. Louis"]
[Date "2014.10.23"]
[Round "3"]
[White "Leon Hoyos, Manuel"]
[Black "Robson, Ray"]
[Result "0-1"]
[ECO "B53"]
[WhiteElo "2512"]
[BlackElo "2628"]
[PlyCount "84"]
[EventDate "2014.??.??"]
[EventCountry "USA"]
[TimeControl "5400+30"]
[WhiteClock "0:01:18"]
[BlackClock "0:02:30"]

1. e4 {[%emt 0:00:00]} c5 {[%emt 0:01:28]} 2. Nf3 {[%emt 0:00:00]} d6 {[%emt 0:
00:44]} 3. d4 {[%emt 0:00:12]} cxd4 {[%emt 0:00:18]} 4. Qxd4 {[%emt 0:00:10]}
Nc6 {[%emt 0:02:19]} 5. Bb5 {[%emt 0:00:09]} Bd7 {[%emt 0:00:55]} 6. Qd3 {
[%emt 0:00:45]} g6 {[%emt 0:02:13]} 7. c4 {[%emt 0:02:16]} Bg7 {[%emt 0:01:31]}
8. Nc3 {[%emt 0:00:16]} Nf6 {[%emt 0:00:39]} 9. O-O {[%emt 0:00:46]} O-O {
[%emt 0:00:44]} 10. h3 {[%emt 0:09:15]} a6 {[%emt 0:11:04]} 11. Bxc6 {[%emt 0:
02:25]} Bxc6 {[%emt 0:00:47]} 12. Nd4 {[%emt 0:00:13]} Rc8 {[%emt 0:09:25]} 13.
Bd2 {[%emt 0:01:27]} Qb6 {[%emt 0:17:11]} 14. Nb3 {[%emt 0:10:34]} Nd7 {[%emt
0:04:33]} 15. Qe2 {[%emt 0:24:15]} Nc5 {[%emt 0:03:21]} 16. Nxc5 {[%emt 0:03:
49]} dxc5 {[%emt 0:05:50]} 17. b3 {[%emt 0:01:51]} Qc7 {[%emt 0:03:16]} 18.
Rae1 {[%emt 0:03:49]} e6 {[%emt 0:02:01]} 19. e5 {[%emt 0:05:03]} Qe7 {[%emt 0:
05:17]} 20. Bf4 {[%emt 0:04:39]} Rcd8 {[%emt 0:03:32]} 21. Qe3 {[%emt 0:03:23]}
f6 {[%emt 0:05:18]} 22. Rd1 {[%emt 0:04:26]} Rxd1 {[%emt 0:02:53]} 23. Rxd1 {
[%emt 0:00:47]} g5 {[%emt 0:00:31]} 24. Bg3 {[%emt 0:07:33]} f5 {[%emt 0:00:18]
} 25. f4 {[%emt 0:00:02]} gxf4 {[%emt 0:02:17]} 26. Bxf4 {[%emt 0:01:12]} Rd8 {
[%emt 0:01:34]} 27. Rxd8+ {[%emt 0:09:32]} Qxd8 {[%emt 0:00:03]} 28. Kf2 {
[%emt 0:01:16]} Kf7 {[%emt 0:04:01]} 29. Ne2 {[%emt 0:01:40]} b6 {[%emt 0:04:
12]} 30. Bg5 {[%emt 0:02:35]} Qb8 {[%emt 0:00:51]} 31. Bf6 {[%emt 0:00:20]}
Bxf6 {[%emt 0:00:25]} 32. exf6 {[%emt 0:00:01]} Qg8 {[%emt 0:00:14]} 33. Nf4 {
[%emt 0:00:53]} Kxf6 {[%emt 0:00:18]} 34. Qd3 {[%emt 0:00:28]} Qf8 {[%emt 0:03:
20]} 35. Nh5+ {[%emt 0:00:41]} Kg5 {[%emt 0:01:30]} 36. Nf4 {[%emt 0:00:31]}
Kf6 {[%emt 0:00:45]} 37. Nh5+ {[%emt 0:00:14]} Ke7 {[%emt 0:01:23]} 38. Qg3 {
[%emt 0:00:11]} Qh6 {[%emt 0:00:53]} 39. Qc7+ {[%emt 0:00:06]} Bd7 {[%emt 0:00:
04]} 40. Nf4 {[%emt 0:00:15]} Qf6 {[%emt 0:00:09]} 41. Qxb6 {[%emt 0:01:29]}
Qd4+ {[%emt 0:00:16]} 42. Kf3 {[%emt 0:00:13]} Qe4+ {[%emt 0:00:07]} 0-1

[Event "SPICE Cup 2014"]
[Site "St. Louis"]
[Date "2014.10.23"]
[Round "3"]
[White "Kiewra, Keaton F"]
[Black "Chandra, Akshat"]
[Result "1/2-1/2"]
[ECO "A45"]
[WhiteElo "2391"]
[BlackElo "2488"]
[PlyCount "102"]
[EventDate "2014.??.??"]
[EventCountry "USA"]
[TimeControl "5400+30"]

1. d4 Nf6 2. Bg5 d5 3. Bxf6 exf6 4. e3 Bd6 5. c4 dxc4 6. Bxc4 O-O 7. Nc3 f5 8.
Qc2 Nd7 9. Nge2 Nf6 10. h3 Qe7 11. Bd3 g6 12. O-O-O b6 13. Rhg1 Bb7 14. g4 Bh2
15. Rgf1 Bg2 16. gxf5 Bxf1 17. Rxf1 c5 18. fxg6 fxg6 19. dxc5 bxc5 20. Ne4 Nxe4
21. Bxe4 Rae8 22. Nc3 Be5 23. Bd5+ Kh8 24. f4 Bg7 25. Rf3 Rb8 26. Bc4 Qh4 27.
Qf2 Qf6 28. e4 Qd4 29. Qxd4 Bxd4 30. Kc2 Rf6 31. Bd3 Bxc3 32. Kxc3 Rbf8 33. f5
gxf5 34. exf5 Kg7 35. Rg3+ Kh6 36. Rg4 Rd8 37. Rh4+ Kg7 38. Rg4+ Kf8 39. Bc4
Rxf5 40. Rg8+ Ke7 41. Rg7+ Kf6 42. Rxh7 Rf3+ 43. Kc2 Rf2+ 44. Kc3 Rdd2 45. Bb3
Rxb2 46. Rxa7 Rbe2 47. Kc4 Rf5 48. Kb5 Rh5 49. Rf7+ Kg6 50. Rf3 Rhe5 51. Rc3
R2e3 1/2-1/2

[Event "SPICE Cup 2014"]
[Site "St. Louis"]
[Date "2014.10.23"]
[Round "3"]
[White "Le, Quang Liem"]
[Black "Preotu, Razvan"]
[Result "1/2-1/2"]
[ECO "A81"]
[WhiteElo "2706"]
[BlackElo "2405"]
[PlyCount "189"]
[EventDate "2014.??.??"]
[EventCountry "USA"]
[TimeControl "5400+30"]
[WhiteClock "0:02:30"]
[BlackClock "0:02:38"]

1. d4 {[%emt 0:00:00]} f5 {[%emt 0:00:00]} 2. g3 {[%emt 0:00:00]} Nf6 {[%emt 0:
00:01]} 3. Bg2 {[%emt 0:00:00]} g6 {[%emt 0:00:21]} 4. Nf3 {[%emt 0:00:15]} Bg7
{[%emt 0:00:13]} 5. O-O {[%emt 0:00:08]} O-O {[%emt 0:00:20]} 6. b3 {[%emt 0:
00:12]} Ne4 {[%emt 0:01:18]} 7. Bb2 {[%emt 0:00:30]} c5 {[%emt 0:00:34]} 8. c4
{[%emt 0:01:16]} Nc6 {[%emt 0:00:43]} 9. e3 {[%emt 0:04:03]} e6 {[%emt 0:01:38]
} 10. Nc3 {[%emt 0:02:02]} b6 {[%emt 0:05:20]} 11. Qe2 {[%emt 0:12:54]} Bb7 {
[%emt 0:01:08]} 12. Rfd1 {[%emt 0:00:40]} Qe7 {[%emt 0:01:13]} 13. Rac1 {[%emt
0:01:35]} d6 {[%emt 0:10:30]} 14. Qe1 {[%emt 0:15:53]} Nxc3 {[%emt 0:05:55]}
15. Bxc3 {[%emt 0:00:20]} e5 {[%emt 0:02:58]} 16. d5 {[%emt 0:07:16]} Nd8 {
[%emt 0:02:39]} 17. Nd2 {[%emt 0:10:55]} e4 {[%emt 0:02:39]} 18. f3 {[%emt 0:
01:38]} Bxc3 {[%emt 0:04:09]} 19. Rxc3 {[%emt 0:00:08]} Qf6 {[%emt 0:02:17]}
20. Rc2 {[%emt 0:02:08]} exf3 {[%emt 0:00:37]} 21. Nxf3 {[%emt 0:00:16]} Nf7 {
[%emt 0:00:48]} 22. Qc3 {[%emt 0:03:34]} Qxc3 {[%emt 0:03:05]} 23. Rxc3 {[%emt
0:00:02]} Rae8 {[%emt 0:08:07]} 24. Re1 {[%emt 0:00:33]} Bc8 {[%emt 0:01:19]}
25. Kf2 {[%emt 0:05:28]} Ne5 {[%emt 0:02:25]} 26. Nxe5 {[%emt 0:00:11]} Rxe5 {
[%emt 0:00:50]} 27. Rb1 {[%emt 0:02:53]} Re7 {[%emt 0:06:22]} 28. Bf3 {[%emt 0:
04:07]} Kg7 {[%emt 0:03:42]} 29. b4 {[%emt 0:01:27]} cxb4 {[%emt 0:01:58]} 30.
Rxb4 {[%emt 0:00:02]} Rc7 {[%emt 0:00:24]} 31. Ke2 {[%emt 0:02:12]} Kf6 {[%emt
0:05:23]} 32. Kd2 {[%emt 0:00:15]} Ke5 {[%emt 0:01:54]} 33. Be2 {[%emt 0:00:11]
} Rc5 {[%emt 0:00:52]} 34. Ra3 {[%emt 0:01:15]} Rf7 {[%emt 0:00:58]} 35. Bd3 {
[%emt 0:01:26]} g5 {[%emt 0:03:35]} 36. Rb1 {[%emt 0:00:13]} Rcc7 {[%emt 0:02:
06]} 37. Rf1 {[%emt 0:01:43]} h5 {[%emt 0:01:13]} 38. Rb3 {[%emt 0:04:27]} h4 {
[%emt 0:01:19]} 39. Rbb1 {[%emt 0:01:07]} Rf6 {[%emt 0:03:15]} 40. gxh4 {[%emt
0:06:22]} g4 {[%emt 0:04:57]} 41. h3 {[%emt 0:02:27]} gxh3 {[%emt 0:00:59]} 42.
Rf3 {[%emt 0:00:08]} Rg7 {[%emt 0:04:46]} 43. Rxh3 {[%emt 0:00:32]} Rg2+ {
[%emt 0:00:42]} 44. Kc3 {[%emt 0:00:25]} Rxa2 {[%emt 0:00:49]} 45. Rg1 {[%emt
0:02:24]} Rf8 {[%emt 0:02:02]} 46. Kb3 {[%emt 0:02:39]} Rd2 {[%emt 0:00:26]}
47. Kc3 {[%emt 0:00:07]} Ra2 {[%emt 0:00:09]} 48. h5 {[%emt 0:00:17]} Ra3+ {
[%emt 0:00:36]} 49. Kd2 {[%emt 0:00:50]} f4 {[%emt 0:01:27]} 50. Rg5+ {[%emt 0:
01:04]} Kf6 {[%emt 0:00:22]} 51. Rg6+ {[%emt 0:00:10]} Ke7 {[%emt 0:01:14]} 52.
Rf3 {[%emt 0:01:53]} Rxd3+ {[%emt 0:00:36]} 53. Kxd3 {[%emt 0:00:02]} Bf5+ {
[%emt 0:00:11]} 54. Kd4 {[%emt 0:00:31]} Bxg6 {[%emt 0:00:09]} 55. hxg6 {[%emt
0:00:01]} Rg8 {[%emt 0:00:32]} 56. exf4 {[%emt 0:00:19]} Rxg6 {[%emt 0:00:11]}
57. Ra3 {[%emt 0:00:05]} a5 {[%emt 0:01:15]} 58. Rb3 {[%emt 0:00:07]} Rg4 {
[%emt 0:00:18]} 59. Ke4 {[%emt 0:00:12]} Rg1 {[%emt 0:01:54]} 60. Rxb6 {[%emt
0:00:07]} Rc1 {[%emt 0:00:08]} 61. Rb7+ {[%emt 0:00:19]} Kd8 {[%emt 0:00:18]}
62. Kd3 {[%emt 0:01:33]} Rd1+ {[%emt 0:00:09]} 63. Kc2 {[%emt 0:00:53]} Rd4 {
[%emt 0:00:11]} 64. Kb3 {[%emt 0:00:16]} Rxf4 {[%emt 0:00:50]} 65. Ra7 {[%emt
0:00:07]} Rf1 {[%emt 0:00:46]} 66. Rxa5 {[%emt 0:00:10]} Kc7 {[%emt 0:00:23]}
67. Ra8 {[%emt 0:00:50]} Rb1+ {[%emt 0:00:37]} 68. Kc2 {[%emt 0:00:07]} Rh1 {
[%emt 0:00:18]} 69. Ra6 {[%emt 0:00:34]} Rh3 {[%emt 0:00:11]} 70. Rc6+ {[%emt
0:00:09]} Kd7 {[%emt 0:00:06]} 71. Rb6 {[%emt 0:00:06]} Kc7 {[%emt 0:00:26]}
72. Rb3 {[%emt 0:00:09]} Rh2+ {[%emt 0:01:20]} 73. Kc3 {[%emt 0:00:08]} Rh3+ {
[%emt 0:00:22]} 74. Kb4 {[%emt 0:00:08]} Rh1 {[%emt 0:00:23]} 75. Rg3 {[%emt 0:
01:33]} Rb1+ {[%emt 0:00:51]} 76. Kc3 {[%emt 0:00:07]} Rc1+ {[%emt 0:00:04]}
77. Kd4 {[%emt 0:00:10]} Rd1+ {[%emt 0:00:43]} 78. Ke4 {[%emt 0:00:27]} Rc1 {
[%emt 0:01:10]} 79. Rg7+ {[%emt 0:00:47]} Kd8 {[%emt 0:00:35]} 80. Kd3 {[%emt
0:00:09]} Kc8 {[%emt 0:00:17]} 81. Ra7 {[%emt 0:01:05]} Kd8 {[%emt 0:00:11]}
82. Rh7 {[%emt 0:01:19]} Kc8 {[%emt 0:00:14]} 83. Rf7 {[%emt 0:00:08]} Kd8 {
[%emt 0:00:08]} 84. Ke4 {[%emt 0:00:15]} Rxc4+ {[%emt 0:01:28]} 85. Kf5 {[%emt
0:00:07]} Ke8 {[%emt 0:01:33]} 86. Rh7 {[%emt 0:00:14]} Kd8 {[%emt 0:00:22]}
87. Ke6 {[%emt 0:00:12]} Rg4 {[%emt 0:00:08]} 88. Rf7 {[%emt 0:01:12]} Rg1 {
[%emt 0:00:57]} 89. Rd7+ {[%emt 0:01:29]} Ke8 {[%emt 0:00:15]} 90. Kxd6 {[%emt
0:01:18]} Ra1 {[%emt 0:00:15]} 91. Rb7 {[%emt 0:03:04]} Ra6+ {[%emt 0:00:15]}
92. Ke5 {[%emt 0:01:08]} Kd8 {[%emt 0:00:21]} 93. Rh7 {[%emt 0:00:11]} Rb6 {
[%emt 0:00:16]} 94. d6 {[%emt 0:00:09]} Rb1 {[%emt 0:00:08]} 95. Ke4 1/2-1/2

[Event "SPICE Cup 2014"]
[Site "St. Louis"]
[Date "2014.10.23"]
[Round "3"]
[White "Troff, Kayden W"]
[Black "Sanches, Ruiz"]
[Result "1-0"]
[ECO "D11"]
[WhiteElo "2532"]
[BlackElo "2429"]
[PlyCount "135"]
[EventDate "2014.??.??"]
[EventCountry "USA"]
[TimeControl "5400+30"]
[WhiteClock "0:01:39"]
[BlackClock "0:08:03"]

1. d4 {[%emt 0:00:00]} d5 {[%emt 0:00:00]} 2. c4 {[%emt 0:00:00]} c6 {[%emt 0:
00:00]} 3. Nf3 {[%emt 0:00:00]} Nf6 {[%emt 0:00:00]} 4. e3 {[%emt 0:00:00]} e6
{[%emt 0:00:05]} 5. Bd3 {[%emt 0:00:57]} dxc4 {[%emt 0:00:09]} 6. Bxc4 {[%emt
0:00:09]} Nbd7 {[%emt 0:00:02]} 7. O-O {[%emt 0:04:05]} Bd6 {[%emt 0:00:22]} 8.
b3 {[%emt 0:03:49]} O-O {[%emt 0:00:54]} 9. Bb2 {[%emt 0:03:32]} Qe7 {[%emt 0:
04:38]} 10. Ne5 {[%emt 0:09:50]} c5 {[%emt 0:00:35]} 11. Nd2 {[%emt 0:04:13]}
cxd4 {[%emt 0:01:48]} 12. exd4 {[%emt 0:00:49]} Ba3 {[%emt 0:01:57]} 13. Bxa3 {
[%emt 0:07:03]} Qxa3 {[%emt 0:00:04]} 14. Bd3 {[%emt 0:03:50]} Nb6 {[%emt 0:09:
30]} 15. Ne4 {[%emt 0:07:21]} Qe7 {[%emt 0:01:34]} 16. Nxf6+ {[%emt 0:02:51]}
Qxf6 {[%emt 0:00:45]} 17. Rc1 {[%emt 0:02:37]} Nd5 {[%emt 0:04:58]} 18. Be4 {
[%emt 0:03:27]} Qd8 {[%emt 0:01:42]} 19. Qf3 {[%emt 0:04:42]} Nf6 {[%emt 0:03:
32]} 20. Rfd1 {[%emt 0:02:42]} Nxe4 {[%emt 0:02:34]} 21. Qxe4 {[%emt 0:00:18]}
Rb8 {[%emt 0:08:45]} 22. Rd3 {[%emt 0:07:30]} Bd7 {[%emt 0:04:35]} 23. Rdc3 {
[%emt 0:03:37]} Bc6 {[%emt 0:04:29]} 24. Nxc6 {[%emt 0:00:47]} bxc6 {[%emt 0:
00:08]} 25. Rxc6 {[%emt 0:00:56]} Rb4 {[%emt 0:01:33]} 26. R6c4 {[%emt 0:01:58]
} Rb5 {[%emt 0:02:39]} 27. g3 {[%emt 0:01:49]} Rd5 {[%emt 0:00:11]} 28. Ra4 {
[%emt 0:00:45]} Qb6 {[%emt 0:03:07]} 29. Qf4 {[%emt 0:01:13]} Rd7 {[%emt 0:03:
12]} 30. Rcc4 {[%emt 0:05:37]} Rb8 {[%emt 0:07:27]} 31. Ra6 {[%emt 0:02:25]}
Qd8 {[%emt 0:00:32]} 32. Rac6 {[%emt 0:00:07]} g5 {[%emt 0:01:40]} 33. Qe5 {
[%emt 0:01:49]} h6 {[%emt 0:01:08]} 34. Qc5 {[%emt 0:01:39]} Qf6 {[%emt 0:05:
08]} 35. Qe5 {[%emt 0:06:02]} Qxe5 {[%emt 0:00:17]} 36. dxe5 {[%emt 0:00:05]}
Rd2 {[%emt 0:03:26]} 37. Rc2 {[%emt 0:03:31]} Rxc2 {[%emt 0:00:41]} 38. Rxc2 {
[%emt 0:00:02]} Rb5 {[%emt 0:00:01]} 39. f4 {[%emt 0:00:31]} a5 {[%emt 0:01:32]
} 40. Kf2 {[%emt 0:01:59]} a4 {[%emt 0:01:32]} 41. bxa4 {[%emt 0:01:25]} Rb4 {
[%emt 0:00:15]} 42. fxg5 {[%emt 0:02:24]} hxg5 {[%emt 0:00:02]} 43. Ke3 {[%emt
0:00:37]} Rxa4 {[%emt 0:00:10]} 44. Kd3 {[%emt 0:00:20]} Kg7 {[%emt 0:00:43]}
45. Kc3 {[%emt 0:01:16]} Re4 {[%emt 0:00:37]} 46. a3 {[%emt 0:00:59]} Rxe5 {
[%emt 0:00:09]} 47. Ra2 {[%emt 0:00:27]} Ra5 {[%emt 0:00:51]} 48. a4 {[%emt 0:
00:05]} f5 {[%emt 0:01:33]} 49. Kb4 {[%emt 0:00:05]} Ra8 {[%emt 0:00:05]} 50.
a5 {[%emt 0:00:08]} f4 {[%emt 0:00:55]} 51. gxf4 {[%emt 0:01:49]} gxf4 {[%emt
0:00:05]} 52. Kc4 {[%emt 0:00:53]} Kf6 {[%emt 0:00:32]} 53. a6 {[%emt 0:00:36]}
Kf5 {[%emt 0:01:21]} 54. Kd3 {[%emt 0:00:23]} e5 {[%emt 0:02:57]} 55. Ra5 {
[%emt 0:00:36]} Kg4 {[%emt 0:03:47]} 56. Ke4 {[%emt 0:00:22]} f3 {[%emt 0:00:
26]} 57. Ke3 {[%emt 0:00:07]} e4 {[%emt 0:02:04]} 58. a7 {[%emt 0:00:23]} Kh4 {
[%emt 0:03:22]} 59. Kf2 {[%emt 0:01:08]} Kg4 {[%emt 0:00:08]} 60. Ra4 {[%emt 0:
00:32]} Kh3 {[%emt 0:01:40]} 61. Ra6 {[%emt 0:00:35]} Kg4 {[%emt 0:01:11]} 62.
Ra5 {[%emt 0:00:37]} Kh4 {[%emt 0:00:38]} 63. Ra1 {[%emt 0:00:27]} Kg4 {[%emt
0:00:52]} 64. Ra6 {[%emt 0:00:05]} Kh4 {[%emt 0:01:47]} 65. Ke3 {[%emt 0:00:35]
} Kh3 {[%emt 0:01:34]} 66. Ra2 {[%emt 0:00:36]} Kg4 {[%emt 0:00:22]} 67. Ra4 {
[%emt 0:00:05]} Kh3 {[%emt 0:00:09]} 68. Kf2 {[%emt 0:00:09]} 1-0

[Event "SPICE Cup 2014"]
[Site "St. Louis"]
[Date "2014.10.23"]
[Round "4"]
[White "Banawa, Joel Cholo B"]
[Black "Corrales Jimenez, Fidel"]
[Result "0-1"]
[ECO "A40"]
[WhiteElo "2350"]
[BlackElo "2532"]
[PlyCount "122"]
[EventDate "2014.??.??"]
[EventCountry "USA"]
[TimeControl "5400+30"]
[WhiteClock "0:25:27"]
[BlackClock "0:37:22"]

1. d4 g6 2. Nf3 Bg7 3. Bf4 d6 4. e3 Nd7 5. h3 e5 6. Bh2 Ne7 7. Be2 O-O 8. O-O
Nf5 9. c3 Qe7 10. a4 a5 11. Na3 {[%emt 0:07:38]} c6 {[%emt 0:03:00]} 12. e4 {
[%emt 0:11:47]} Nh4 {[%emt 0:00:26]} 13. Nc4 {[%emt 0:09:46]} Nxf3+ {[%emt 0:
02:09]} 14. Bxf3 {[%emt 0:00:45]} Rd8 {[%emt 0:01:13]} 15. Re1 {[%emt 0:09:09]}
Nf8 {[%emt 0:03:54]} 16. dxe5 {[%emt 0:10:06]} dxe5 {[%emt 0:00:25]} 17. Qe2 {
[%emt 0:00:08]} h5 {[%emt 0:02:22]} 18. Qe3 {[%emt 0:02:28]} Kh7 {[%emt 0:04:
58]} 19. Red1 {[%emt 0:00:47]} Rxd1+ {[%emt 0:02:29]} 20. Rxd1 {[%emt 0:00:19]}
Be6 {[%emt 0:02:27]} 21. Be2 {[%emt 0:00:11]} Nd7 {[%emt 0:02:25]} 22. Ra1 {
[%emt 0:08:40]} f6 {[%emt 0:00:55]} 23. Qd3 {[%emt 0:00:57]} Nc5 {[%emt 0:03:
38]} 24. Qc2 {[%emt 0:00:43]} Bh6 {[%emt 0:03:27]} 25. f3 {[%emt 0:06:47]} Rd8
{[%emt 0:04:12]} 26. Rd1 {[%emt 0:00:29]} Rxd1+ {[%emt 0:02:23]} 27. Qxd1 {
[%emt 0:00:03]} Bxc4 {[%emt 0:00:08]} 28. Bxc4 {[%emt 0:00:05]} Nxe4 {[%emt 0:
00:19]} 29. fxe4 {[%emt 0:00:04]} Qc5+ {[%emt 0:00:03]} 30. Kh1 {[%emt 0:00:02]
} Qxc4 {[%emt 0:00:05]} 31. Qd7+ {[%emt 0:02:47]} Bg7 {[%emt 0:02:26]} 32. Qxb7
{[%emt 0:00:17]} Qxa4 {[%emt 0:00:33]} 33. b4 {[%emt 0:00:21]} axb4 {[%emt 0:
08:24]} 34. cxb4 {[%emt 0:00:02]} Qb5 {[%emt 0:00:10]} 35. Qa8 {[%emt 0:00:03]}
Bh6 {[%emt 0:08:13]} 36. Qa7+ {[%emt 0:02:01]} Bg7 {[%emt 0:04:26]} 37. Qa8 {
[%emt 0:00:05]} Qc4 {[%emt 0:01:36]} 38. Bg1 {[%emt 0:02:30]} g5 {[%emt 0:00:
14]} 39. Qe8 {[%emt 0:00:59]} Kh6 {[%emt 0:01:10]} 40. Qa8 {[%emt 0:00:46]} h4
{[%emt 0:01:43]} 41. Qb7 {[%emt 0:02:02]} Bf8 {[%emt 0:03:46]} 42. Qc8 {[%emt
0:00:14]} Bxb4 {[%emt 0:00:46]} 43. Qh8+ {[%emt 0:00:09]} Kg6 {[%emt 0:00:05]}
44. Qe8+ {[%emt 0:00:03]} Kg7 {[%emt 0:00:13]} 45. Qd7+ {[%emt 0:00:10]} Kf8 {
[%emt 0:00:19]} 46. Qd8+ {[%emt 0:00:04]} Kf7 {[%emt 0:00:06]} 47. Qd7+ {[%emt
0:00:20]} Be7 {[%emt 0:00:04]} 48. Qf5 {[%emt 0:00:04]} c5 {[%emt 0:00:54]} 49.
Qh7+ {[%emt 0:00:06]} Ke8 {[%emt 0:00:07]} 50. Qh8+ {[%emt 0:00:10]} Kd7 {
[%emt 0:00:07]} 51. Qa8 {[%emt 0:00:05]} Qb5 {[%emt 0:01:48]} 52. Qa7+ {[%emt
0:00:13]} Ke6 {[%emt 0:00:15]} 53. Qa8 {[%emt 0:01:12]} c4 {[%emt 0:00:07]} 54.
Qc8+ {[%emt 0:00:12]} Kf7 {[%emt 0:00:05]} 55. Qc7 {[%emt 0:00:42]} Qb4 {[%emt
0:00:54]} 56. Kh2 {[%emt 0:00:29]} c3 {[%emt 0:00:27]} 57. Qc6 {[%emt 0:00:08]}
Qb3 {[%emt 0:01:15]} 58. Qc7 {[%emt 0:03:02]} c2 {[%emt 0:00:15]} 59. Bf2 {
[%emt 0:00:05]} Qd3 {[%emt 0:00:46]} 60. Qc6 {[%emt 0:04:41]} Qd2 {[%emt 0:00:
43]} 61. Qc4+ {[%emt 0:00:07]} Kg7 {[%emt 0:00:13]} 0-1